[Event "*** Titled Tuesday 3|2 Blitz"]
[Site "Chess.com"]
[Date "2015.03.03"]
[Round "1"]
[White "raskolnnikov"]
[Black "HansCoolNiemann"]
[Result "1-0"]
[WhiteElo "2270"]
[BlackElo "1823"]
[TimeControl "180+2"]
[EndTime "11:08:32 PST"]
[Termination "raskolnnikov won by checkmate"]

1. d4 {[%clk 0:02:57]} 1... Nf6 {[%clk 0:02:57.4]} 2. c4 {[%clk 0:02:58.3]} 2...
g6 {[%clk 0:02:58.6]} 3. Nc3 {[%clk 0:02:59.8]} 3... Bg7 {[%clk 0:02:59.9]} 4.
e4 {[%clk 0:03:01.1]} 4... d6 {[%clk 0:03:01.3]} 5. Nf3 {[%clk 0:03:03]} 5...
O-O {[%clk 0:03:02.5]} 6. Be2 {[%clk 0:03:04.7]} 6... e5 {[%clk 0:03:03.7]} 7.
O-O {[%clk 0:03:06.6]} 7... exd4 {[%clk 0:03:04.2]} 8. Nxd4 {[%clk 0:03:07.7]}
8... Re8 {[%clk 0:03:05.8]} 9. f3 {[%clk 0:03:09.1]} 9... c6 {[%clk 0:03:07.2]}
10. Kh1 {[%clk 0:03:10.5]} 10... Qb6 {[%clk 0:03:04.8]} 11. Nc2 {[%clk
0:03:04.7]} 11... Qd8 {[%clk 0:02:55.3]} 12. Bf4 {[%clk 0:03:02.1]} 12... Bf8
{[%clk 0:02:55.6]} 13. Qd2 {[%clk 0:03:01.7]} 13... Nh5 {[%clk 0:02:55.5]} 14.
Bg5 {[%clk 0:03:02.2]} 14... Qc7 {[%clk 0:02:51.2]} 15. Rad1 {[%clk 0:03:02.1]}
15... Nd7 {[%clk 0:02:51.2]} 16. g4 {[%clk 0:03:02]} 16... Ng7 {[%clk
0:02:49.3]} 17. Nd4 {[%clk 0:02:53.1]} 17... Ne5 {[%clk 0:02:48]} 18. Rg1 {[%clk
0:02:46.1]} 18... Ne6 {[%clk 0:02:47.8]} 19. Nxe6 {[%clk 0:02:44]} 19... Bxe6
{[%clk 0:02:47.7]} 20. b3 {[%clk 0:02:43.7]} 20... a6 {[%clk 0:02:33]} 21. f4
{[%clk 0:02:44.8]} 21... f6 {[%clk 0:02:20.9]} 22. Bh4 {[%clk 0:02:34]} 22...
Nd7 {[%clk 0:02:20.4]} 23. f5 {[%clk 0:02:33.8]} 23... Bf7 {[%clk 0:02:21.2]}
24. g5 {[%clk 0:02:35.1]} 24... fxg5 {[%clk 0:02:17.2]} 25. Bxg5 {[%clk
0:02:35.4]} 25... Nc5 {[%clk 0:02:18]} 26. Bf3 {[%clk 0:02:33.2]} 26... Bg7
{[%clk 0:02:12]} 27. Rg4 {[%clk 0:02:34.1]} 27... gxf5 {[%clk 0:02:09.9]} 28.
exf5 {[%clk 0:02:31.3]} 28... Bh5 {[%clk 0:02:10.9]} 29. Rg3 {[%clk 0:02:22.1]}
29... Bxf3+ {[%clk 0:02:07.2]} 30. Rxf3 {[%clk 0:02:24]} 30... Bxc3 {[%clk
0:01:57.9]} 31. Qxc3 {[%clk 0:02:22.7]} 31... Ne4 {[%clk 0:01:59]} 32. Qc1
{[%clk 0:02:19]} 32... Kh8 {[%clk 0:01:56.3]} 33. Bh6 {[%clk 0:02:07.2]} 33...
Qf7 {[%clk 0:01:53.1]} 34. f6 {[%clk 0:01:47.3]} 34... Qh5 {[%clk 0:01:49]} 35.
Rdf1 {[%clk 0:01:32.4]} 35... Qf7 {[%clk 0:01:37.5]} 36. Qf4 {[%clk 0:01:20.4]}
36... Re6 {[%clk 0:01:29.1]} 37. Bg7+ {[%clk 0:01:20.5]} 37... Kg8 {[%clk
0:01:29]} 38. Rg1 {[%clk 0:01:18.3]} 38... Rae8 {[%clk 0:00:59.9]} 39. Qh6
{[%clk 0:01:18.2]} 39... Re5 {[%clk 0:00:28.8]} 40. Bf8+ {[%clk 0:00:35.5]}
40... Kh8 {[%clk 0:00:26.2]} 41. Rg7 {[%clk 0:00:37.1]} 41... Qh5 {[%clk
0:00:08.8]} 42. Rg8+ {[%clk 0:00:35.3]} 42... Kxg8 {[%clk 0:00:07.5]} 43. Qg7#
{[%clk 0:00:36.9]} 1-0

[Event "*** Titled Tuesday 3|2 Blitz"]
[Site "Chess.com"]
[Date "2015.03.03"]
[Round "1"]
[White "Cryptochess"]
[Black "alturas_pacificas"]
[Result "1-0"]
[WhiteElo "2383"]
[BlackElo "2066"]
[TimeControl "180+2"]
[EndTime "11:08:35 PST"]
[Termination "Cryptochess won by resignation"]

1. e4 {[%clk 0:02:58.2]} 1... e5 {[%clk 0:02:55.1]} 2. Nf3 {[%clk 0:02:58.1]}
2... Nf6 {[%clk 0:02:54.5]} 3. Nc3 {[%clk 0:02:51.3]} 3... Nc6 {[%clk 0:02:55]}
4. Bb5 {[%clk 0:02:50.4]} 4... Bb4 {[%clk 0:02:52.4]} 5. O-O {[%clk 0:02:48.9]}
5... d6 {[%clk 0:02:50.1]} 6. d3 {[%clk 0:02:41.8]} 6... Bxc3 {[%clk 0:02:44.1]}
7. bxc3 {[%clk 0:02:42.2]} 7... O-O {[%clk 0:02:45]} 8. Bg5 {[%clk 0:02:41]}
8... a6 {[%clk 0:02:36.5]} 9. Ba4 {[%clk 0:02:40.9]} 9... b5 {[%clk 0:02:34.4]}
10. Bb3 {[%clk 0:02:42.2]} 10... Na5 {[%clk 0:02:35.1]} 11. d4 {[%clk
0:02:22.2]} 11... exd4 {[%clk 0:02:21.9]} 12. cxd4 {[%clk 0:02:17.4]} 12... h6
{[%clk 0:02:19.6]} 13. Bh4 {[%clk 0:01:05.6]} 13... g5 {[%clk 0:02:09.2]} 14.
Nxg5 {[%clk 0:01:04.2]} 14... hxg5 {[%clk 0:02:11.1]} 15. Bxg5 {[%clk
0:01:05.9]} 15... Nxb3 {[%clk 0:02:11.1]} 16. axb3 {[%clk 0:01:01.2]} 16... Qe7
{[%clk 0:02:10.5]} 17. Qf3 {[%clk 0:00:56.4]} 17... Kg7 {[%clk 0:02:04.4]} 18.
e5 {[%clk 0:00:53.5]} 18... dxe5 {[%clk 0:02:03.9]} 19. dxe5 {[%clk 0:00:46.2]}
19... Qxe5 {[%clk 0:02:05.8]} 20. Bxf6+ {[%clk 0:00:46.1]} 20... Qxf6 {[%clk
0:02:06.9]} 21. Qxa8 {[%clk 0:00:47.1]} 21... Rg8 {[%clk 0:01:51.6]} 22. Qe4
{[%clk 0:00:32.6]} 22... Bf5 {[%clk 0:01:47]} 23. Qf4 {[%clk 0:00:31.2]} 23...
Kh8 {[%clk 0:01:22.4]} 24. g3 {[%clk 0:00:21.9]} 24... Qg6 {[%clk 0:01:18.8]}
25. Qh4+ {[%clk 0:00:19.4]} 25... Kg7 {[%clk 0:01:19.9]} 26. Rfe1 {[%clk
0:00:19.2]} 26... Rh8 {[%clk 0:01:14.1]} 27. Qd4+ {[%clk 0:00:19.1]} 27... Kh7
{[%clk 0:01:12.2]} 28. Re5 {[%clk 0:00:19.4]} 28... Bxc2 {[%clk 0:01:02.7]} 29.
Rc1 {[%clk 0:00:16.2]} 29... Bxb3 {[%clk 0:00:58.4]} 30. Rxc7 {[%clk 0:00:12.7]}
30... Bc4 {[%clk 0:00:52.5]} 31. Kg2 {[%clk 0:00:11.3]} 31... Rb8 {[%clk
0:00:22.5]} 32. Qh4+ {[%clk 0:00:11.5]} 32... Qh6 {[%clk 0:00:19.5]} 33. Rh5
{[%clk 0:00:11.9]} 33... Rb6 {[%clk 0:00:19.6]} 34. Rxh6+ {[%clk 0:00:12]} 34...
Rxh6 {[%clk 0:00:21.5]} 35. Qe4+ {[%clk 0:00:12.8]} 35... Kg7 {[%clk 0:00:21.4]}
36. h4 {[%clk 0:00:12.9]} 36... Re6 {[%clk 0:00:20.9]} 37. Qg4+ {[%clk 0:00:13]}
37... Rg6 {[%clk 0:00:21.2]} 38. Qd4+ {[%clk 0:00:13.5]} 38... Kh7 {[%clk
0:00:18.2]} 39. h5 {[%clk 0:00:14.3]} 1-0

[Event "*** Titled Tuesday 3|2 Blitz"]
[Site "Chess.com"]
[Date "2015.03.03"]
[Round "1"]
[White "darsen_sanzhaev"]
[Black "AkshatChandra"]
[Result "0-1"]
[WhiteElo "2146"]
[BlackElo "2498"]
[TimeControl "180+2"]
[EndTime "11:08:36 PST"]
[Termination "AkshatChandra won on time"]

1. d4 {[%clk 0:02:57.4]} 1... Nf6 {[%clk 0:02:58.6]} 2. c4 {[%clk 0:02:58.7]}
2... g6 {[%clk 0:02:57.4]} 3. Nc3 {[%clk 0:02:58.2]} 3... d5 {[%clk 0:02:58.2]}
4. cxd5 {[%clk 0:02:58.6]} 4... Nxd5 {[%clk 0:02:59.2]} 5. e4 {[%clk 0:03:00.2]}
5... Nxc3 {[%clk 0:03:00.2]} 6. bxc3 {[%clk 0:03:02.1]} 6... Bg7 {[%clk
0:03:01.6]} 7. Be3 {[%clk 0:03:03.7]} 7... c5 {[%clk 0:03:01.7]} 8. Qd2 {[%clk
0:03:05]} 8... Qa5 {[%clk 0:02:58.4]} 9. Rc1 {[%clk 0:03:05.5]} 9... O-O {[%clk
0:02:58.5]} 10. Nf3 {[%clk 0:03:06.2]} 10... Rd8 {[%clk 0:02:53.9]} 11. Be2
{[%clk 0:02:31.8]} 11... Bg4 {[%clk 0:02:47.5]} 12. Ng1 {[%clk 0:02:32]} 12...
Bxe2 {[%clk 0:02:25.8]} 13. Nxe2 {[%clk 0:02:32.4]} 13... Nc6 {[%clk 0:02:17.9]}
14. d5 {[%clk 0:02:27.4]} 14... e6 {[%clk 0:02:18.3]} 15. c4 {[%clk 0:02:24.4]}
15... Nb4 {[%clk 0:02:18.7]} 16. O-O {[%clk 0:02:15.9]} 16... b6 {[%clk
0:02:08.5]} 17. Nc3 {[%clk 0:02:01.7]} 17... exd5 {[%clk 0:01:41]} 18. exd5
{[%clk 0:01:50]} 18... Qa6 {[%clk 0:01:11.5]} 19. Qe2 {[%clk 0:01:15.7]} 19...
Bxc3 {[%clk 0:01:09.3]} 20. Rxc3 {[%clk 0:01:17.6]} 20... Nxd5 {[%clk
0:01:07.1]} 21. Bh6 {[%clk 0:01:02.4]} 21... Re8 {[%clk 0:00:32]} 22. Qf3 {[%clk
0:01:03]} 22... Ne7 {[%clk 0:00:25.2]} 23. g4 {[%clk 0:00:38.9]} 23... f5 {[%clk
0:00:10.7]} 24. h3 {[%clk 0:00:18.6]} 24... Qc8 {[%clk 0:00:11.1]} 25. Re3
{[%clk 0:00:15.1]} 25... Qd7 {[%clk 0:00:06.8]} 26. Rfe1 {[%clk 0:00:15.9]}
26... Nc6 {[%clk 0:00:03.7]} 27. gxf5 {[%clk 0:00:11.3]} 27... Rxe3 {[%clk
0:00:02.8]} 28. Rxe3 {[%clk 0:00:11.9]} 28... Re8 {[%clk 0:00:02.6]} 29. fxg6
{[%clk 0:00:07.4]} 29... hxg6 {[%clk 0:00:03.6]} 30. Rxe8+ {[%clk 0:00:06.1]}
30... Qxe8 {[%clk 0:00:05.5]} 31. Qd5+ {[%clk 0:00:07.4]} 31... Kh7 {[%clk
0:00:07]} 32. Be3 {[%clk 0:00:08.2]} 32... Nb4 {[%clk 0:00:06.5]} 33. Qb7+
{[%clk 0:00:08.3]} 33... Kg8 {[%clk 0:00:05.9]} 34. a3 {[%clk 0:00:08.1]} 34...
Nc2 {[%clk 0:00:05.5]} 35. Bh6 {[%clk 0:00:06.8]} 35... Qf7 {[%clk 0:00:04.8]}
0-1

[Event "*** Titled Tuesday 3|2 Blitz"]
[Site "Chess.com"]
[Date "2015.03.03"]
[Round "1"]
[White "exoticprincess"]
[Black "Rijeka1999"]
[Result "1-0"]
[WhiteElo "2791"]
[BlackElo "2240"]
[TimeControl "180+2"]
[EndTime "11:08:50 PST"]
[Termination "exoticprincess won by resignation"]

1. e4 {[%clk 0:02:49.6]} 1... e5 {[%clk 0:02:58.3]} 2. Nf3 {[%clk 0:02:50.2]}
2... Nc6 {[%clk 0:02:57.6]} 3. Bc4 {[%clk 0:02:51.9]} 3... Nf6 {[%clk
0:02:57.9]} 4. Ng5 {[%clk 0:02:52.2]} 4... d5 {[%clk 0:02:57.3]} 5. exd5 {[%clk
0:02:53.8]} 5... Na5 {[%clk 0:02:58]} 6. Bb5+ {[%clk 0:02:55.2]} 6... Bd7 {[%clk
0:02:57.6]} 7. Qe2 {[%clk 0:02:52.9]} 7... Bd6 {[%clk 0:02:58.6]} 8. Nc3 {[%clk
0:02:52.1]} 8... O-O {[%clk 0:02:58.4]} 9. O-O {[%clk 0:02:52]} 9... Bf5 {[%clk
0:02:35.1]} 10. d3 {[%clk 0:02:49.9]} 10... a6 {[%clk 0:02:33.5]} 11. Ba4 {[%clk
0:02:50.9]} 11... b5 {[%clk 0:02:34.2]} 12. Bb3 {[%clk 0:02:52.1]} 12... Nxb3
{[%clk 0:02:33.5]} 13. axb3 {[%clk 0:02:52.8]} 13... b4 {[%clk 0:02:33.2]} 14.
Nce4 {[%clk 0:02:53.9]} 14... Nxd5 {[%clk 0:02:33.3]} 15. Bd2 {[%clk 0:02:47.6]}
15... Be7 {[%clk 0:02:29.6]} 16. Nf3 {[%clk 0:02:48]} 16... f6 {[%clk
0:02:25.8]} 17. Rfe1 {[%clk 0:02:48.9]} 17... Re8 {[%clk 0:02:25.8]} 18. h3
{[%clk 0:02:49.6]} 18... Bf8 {[%clk 0:02:25.8]} 19. Ng3 {[%clk 0:02:49.4]} 19...
Be6 {[%clk 0:02:25.3]} 20. Qe4 {[%clk 0:02:49.9]} 20... a5 {[%clk 0:02:17]} 21.
Nh2 {[%clk 0:02:49]} 21... Qd7 {[%clk 0:02:14.1]} 22. Qf3 {[%clk 0:02:50.2]}
22... Qc6 {[%clk 0:02:11.2]} 23. Rac1 {[%clk 0:02:45.5]} 23... Ne7 {[%clk
0:02:09.2]} 24. Ne4 {[%clk 0:02:42.8]} 24... Bd5 {[%clk 0:02:07.5]} 25. Qg3
{[%clk 0:02:39.7]} 25... Nf5 {[%clk 0:02:07.2]} 26. Qg4 {[%clk 0:02:39.7]} 26...
Nd4 {[%clk 0:02:08.2]} 27. Be3 {[%clk 0:02:34.4]} 27... f5 {[%clk 0:02:06.7]}
28. Qd1 {[%clk 0:02:29.4]} 28... fxe4 {[%clk 0:02:06]} 29. Ng4 {[%clk
0:02:30.2]} 29... exd3 {[%clk 0:02:05.3]} 30. cxd3 {[%clk 0:02:31.6]} 30... Qg6
{[%clk 0:02:01.6]} 31. Bxd4 {[%clk 0:02:24.8]} 31... exd4 {[%clk 0:02:01.1]} 32.
Rxe8 {[%clk 0:02:25.3]} 32... Rxe8 {[%clk 0:02:01.5]} 33. f3 {[%clk 0:02:26.8]}
33... h5 {[%clk 0:01:58.7]} 34. Nf2 {[%clk 0:02:27.3]} 34... Bd6 {[%clk
0:01:59.8]} 35. Ne4 {[%clk 0:02:23.9]} 35... Bxe4 {[%clk 0:01:59.7]} 36. dxe4
{[%clk 0:02:25.6]} 36... c5 {[%clk 0:02:00.5]} 37. Qd3 {[%clk 0:02:26.6]} 37...
Qg3 {[%clk 0:01:59]} 38. Kf1 {[%clk 0:02:26.5]} 38... Kh8 {[%clk 0:01:54.5]} 39.
Ra1 {[%clk 0:02:26.7]} 39... Bc7 {[%clk 0:01:50.4]} 40. Rc1 {[%clk 0:02:27.1]}
40... Qe5 {[%clk 0:01:49.6]} 41. Qb5 {[%clk 0:02:27.4]} 41... Bd6 {[%clk
0:01:49.2]} 42. Qxa5 {[%clk 0:02:27.6]} 42... d3 {[%clk 0:01:50.2]} 43. Qb5
{[%clk 0:02:27.5]} 43... d2 {[%clk 0:01:49.5]} 44. Rd1 {[%clk 0:02:29]} 44...
Ra8 {[%clk 0:01:22.7]} 45. Rxd2 {[%clk 0:02:27.3]} 45... Ra1+ {[%clk 0:01:21.6]}
46. Ke2 {[%clk 0:02:28.6]} 46... Be7 {[%clk 0:01:20.6]} 47. Qe8+ {[%clk
0:02:25.6]} 47... Kh7 {[%clk 0:01:21.6]} 48. Qf7 {[%clk 0:02:24.9]} 48... Qg5
{[%clk 0:01:19.4]} 49. g4 {[%clk 0:02:23.4]} 49... hxg4 {[%clk 0:01:15.9]} 50.
hxg4 {[%clk 0:02:22.9]} 50... Qh4 {[%clk 0:01:06.6]} 51. Kd3 {[%clk 0:02:21]}
51... Bf6 {[%clk 0:01:00.9]} 52. Kc4 {[%clk 0:02:18.4]} 52... Rc1+ {[%clk
0:00:59.8]} 53. Kb5 {[%clk 0:02:18.6]} 53... Qg3 {[%clk 0:00:55.7]} 54. Rd7
{[%clk 0:02:08.6]} 54... Qb8+ {[%clk 0:00:54]} 55. Rb7 {[%clk 0:02:09.6]} 55...
Qd6 {[%clk 0:00:51.9]} 56. g5 {[%clk 0:02:08.1]} 56... Qd3+ {[%clk 0:00:48.3]}
57. Kc6 {[%clk 0:02:07]} 57... Qa6+ {[%clk 0:00:49.1]} 58. Rb6 {[%clk
0:02:05.4]} 58... Qa8+ {[%clk 0:00:49.9]} 59. Rb7 {[%clk 0:02:04.1]} 59... Qc8+
{[%clk 0:00:47.8]} 60. Kb5 {[%clk 0:02:02]} 60... Bd4 {[%clk 0:00:39.8]} 61. f4
{[%clk 0:01:57.3]} 61... c4 {[%clk 0:00:35]} 62. bxc4 {[%clk 0:01:54.5]} 62...
Qc5+ {[%clk 0:00:35.5]} 63. Ka4 {[%clk 0:01:53.1]} 63... Qxc4 {[%clk 0:00:33.5]}
64. Qf5+ {[%clk 0:01:51.6]} 64... Kg8 {[%clk 0:00:29.3]} 65. Rb8+ {[%clk
0:01:52.9]} 1-0

[Event "*** Titled Tuesday 3|2 Blitz"]
[Site "Chess.com"]
[Date "2015.03.03"]
[Round "1"]
[White "Tomsel"]
[Black "chesstatour"]
[Result "1-0"]
[WhiteElo "2287"]
[BlackElo "1891"]
[TimeControl "180+2"]
[EndTime "11:09:02 PST"]
[Termination "Tomsel won by resignation"]

1. d4 {[%clk 0:02:37.2]} 1... e6 {[%clk 0:02:55.1]} 2. Bf4 {[%clk 0:02:36.2]}
2... b6 {[%clk 0:02:54.6]} 3. e3 {[%clk 0:02:34.3]} 3... Bb7 {[%clk 0:02:55.7]}
4. Nf3 {[%clk 0:02:32.8]} 4... f5 {[%clk 0:02:53.6]} 5. Bd3 {[%clk 0:02:31]}
5... Nf6 {[%clk 0:02:55.1]} 6. h3 {[%clk 0:02:20.2]} 6... Be7 {[%clk 0:02:54.7]}
7. c4 {[%clk 0:02:19.4]} 7... O-O {[%clk 0:02:54.8]} 8. Nc3 {[%clk 0:02:19.9]}
8... c5 {[%clk 0:02:49.1]} 9. Rg1 {[%clk 0:01:46]} 9... d6 {[%clk 0:02:38]} 10.
g4 {[%clk 0:01:41.2]} 10... Ne4 {[%clk 0:02:17.9]} 11. gxf5 {[%clk 0:01:27.8]}
11... exf5 {[%clk 0:02:16.9]} 12. Nd5 {[%clk 0:01:08]} 12... Bxd5 {[%clk
0:02:05.5]} 13. cxd5 {[%clk 0:01:09.9]} 13... Bf6 {[%clk 0:02:06.2]} 14. dxc5
{[%clk 0:01:07.1]} 14... bxc5 {[%clk 0:02:00.6]} 15. Qc2 {[%clk 0:01:07.8]}
15... Qa5+ {[%clk 0:01:45.4]} 16. Ke2 {[%clk 0:01:05.3]} 16... Qb4 {[%clk
0:01:00.7]} 17. Rab1 {[%clk 0:00:58.6]} 17... Nd7 {[%clk 0:00:49.8]} 18. a3
{[%clk 0:00:54.5]} 18... Qb6 {[%clk 0:00:36.8]} 19. Bxe4 {[%clk 0:00:47.8]}
19... fxe4 {[%clk 0:00:37.7]} 20. Qxe4 {[%clk 0:00:49.5]} 20... Rae8 {[%clk
0:00:36]} 21. Qc4 {[%clk 0:00:48.2]} 21... Ne5 {[%clk 0:00:26.6]} 22. Bxe5
{[%clk 0:00:39.2]} 22... Bxe5 {[%clk 0:00:28.5]} 23. Rg4 {[%clk 0:00:36.4]}
23... a6 {[%clk 0:00:11.9]} 24. b4 {[%clk 0:00:30.5]} 24... Rb8 {[%clk
0:00:07.1]} 25. Ng5 {[%clk 0:00:26.2]} 25... Qb5 {[%clk 0:00:04.6]} 26. Qxb5
{[%clk 0:00:25.5]} 26... Rxb5 {[%clk 0:00:06.5]} 27. Ne6 {[%clk 0:00:27.3]}
27... Rf7 {[%clk 0:00:07.7]} 28. f4 {[%clk 0:00:26.2]} 28... Bf6 {[%clk
0:00:08.9]} 29. f5 {[%clk 0:00:24.1]} 29... Rfb7 {[%clk 0:00:08.8]} 30. Rc1
{[%clk 0:00:10.7]} 30... cxb4 {[%clk 0:00:04.9]} 31. Rc8+ {[%clk 0:00:11.3]}
31... Kf7 {[%clk 0:00:06.1]} 32. axb4 {[%clk 0:00:08]} 32... Rxb4 {[%clk
0:00:06.3]} 33. Rxb4 {[%clk 0:00:05.2]} 33... Rxb4 {[%clk 0:00:08.2]} 34. Rc7+
{[%clk 0:00:06.3]} 34... Kg8 {[%clk 0:00:07.8]} 35. Rc8+ {[%clk 0:00:06.9]}
35... Kf7 {[%clk 0:00:09]} 36. Rc7+ {[%clk 0:00:08.2]} 36... Kg8 {[%clk
0:00:10.2]} 37. Rc6 {[%clk 0:00:09.1]} 37... Rb2+ {[%clk 0:00:09.1]} 38. Kf3
{[%clk 0:00:10.4]} 38... a5 {[%clk 0:00:08.6]} 39. Rxd6 {[%clk 0:00:11.4]} 39...
h6 {[%clk 0:00:09.9]} 40. Ra6 {[%clk 0:00:11.7]} 40... Rb5 {[%clk 0:00:09.6]}
41. d6 {[%clk 0:00:12.5]} 41... Rd5 {[%clk 0:00:10.5]} 42. e4 {[%clk 0:00:07.8]}
42... Be5 {[%clk 0:00:11.4]} 43. exd5 {[%clk 0:00:08.7]} 1-0

[Event "*** Titled Tuesday 3|2 Blitz"]
[Site "Chess.com"]
[Date "2015.03.03"]
[Round "1"]
[White "EltajSafarli"]
[Black "promen1999"]
[Result "1-0"]
[WhiteElo "2655"]
[BlackElo "2231"]
[TimeControl "180+2"]
[EndTime "11:09:05 PST"]
[Termination "EltajSafarli won by resignation"]

1. e4 {[%clk 0:02:56.7]} 1... e5 {[%clk 0:02:58.6]} 2. Nf3 {[%clk 0:02:57]} 2...
Nc6 {[%clk 0:02:59.9]} 3. Bb5 {[%clk 0:02:56.1]} 3... a6 {[%clk 0:03:00.6]} 4.
Ba4 {[%clk 0:02:56.9]} 4... Nf6 {[%clk 0:03:01.4]} 5. Qe2 {[%clk 0:02:57.4]}
5... b5 {[%clk 0:03:01.2]} 6. Bb3 {[%clk 0:02:58]} 6... Be7 {[%clk 0:03:02.5]}
7. c3 {[%clk 0:02:58.8]} 7... O-O {[%clk 0:03:03]} 8. O-O {[%clk 0:02:59.1]}
8... d6 {[%clk 0:03:04]} 9. h3 {[%clk 0:02:59.6]} 9... Nb8 {[%clk 0:03:00]} 10.
d4 {[%clk 0:02:58.7]} 10... Nbd7 {[%clk 0:03:00.9]} 11. Rd1 {[%clk 0:03:00.3]}
11... Bb7 {[%clk 0:02:49]} 12. dxe5 {[%clk 0:03:00.5]} 12... Nxe4 {[%clk
0:02:49.4]} 13. Bc2 {[%clk 0:02:55.6]} 13... f5 {[%clk 0:02:35.1]} 14. exf6
{[%clk 0:02:46.5]} 14... Ndxf6 {[%clk 0:02:35.2]} 15. Nbd2 {[%clk 0:02:35.8]}
15... Nxd2 {[%clk 0:02:35.9]} 16. Bxd2 {[%clk 0:02:37.7]} 16... Qd7 {[%clk
0:02:32.7]} 17. Bg5 {[%clk 0:02:26.6]} 17... Rae8 {[%clk 0:02:31.4]} 18. Be3
{[%clk 0:02:20.9]} 18... Kh8 {[%clk 0:02:28]} 19. a4 {[%clk 0:02:17.4]} 19...
Nd5 {[%clk 0:02:26.4]} 20. Qd3 {[%clk 0:02:10]} 20... Nf6 {[%clk 0:02:24.5]} 21.
Ng5 {[%clk 0:02:06.2]} 21... h6 {[%clk 0:02:19.1]} 22. Nh7 {[%clk 0:01:44.2]}
22... Be4 {[%clk 0:02:01.4]} 23. Nxf8 {[%clk 0:01:44.3]} 23... Rxf8 {[%clk
0:02:02.5]} 24. Qd2 {[%clk 0:01:40.5]} 24... Qf5 {[%clk 0:02:00.8]} 25. Bd3
{[%clk 0:01:38.9]} 25... d5 {[%clk 0:02:00]} 26. f3 {[%clk 0:01:34.2]} 26...
Bxd3 {[%clk 0:02:00]} 27. Qxd3 {[%clk 0:01:36.1]} 27... Qh5 {[%clk 0:02:01]} 28.
axb5 {[%clk 0:01:33.1]} 28... axb5 {[%clk 0:02:01.4]} 29. Qxb5 {[%clk
0:01:34.7]} 29... Bd6 {[%clk 0:01:59.5]} 30. Ra4 {[%clk 0:01:31.1]} 30... Qf5
{[%clk 0:01:09.9]} 31. Bc5 {[%clk 0:01:29.2]} 31... d4 {[%clk 0:01:05.8]} 32.
cxd4 {[%clk 0:01:26.8]} 32... Nh5 {[%clk 0:00:44.3]} 33. Qd3 {[%clk 0:01:25]}
33... Qg5 {[%clk 0:00:36.2]} 34. Bxd6 {[%clk 0:01:19.6]} 34... cxd6 {[%clk
0:00:37.4]} 35. d5 {[%clk 0:01:16.9]} 35... Nf4 {[%clk 0:00:37.1]} 36. Rxf4
{[%clk 0:01:17.4]} 36... Qxf4 {[%clk 0:00:37.6]} 37. Qe4 {[%clk 0:01:17.8]}
37... Qf6 {[%clk 0:00:36.1]} 38. b4 {[%clk 0:01:17.5]} 38... Rb8 {[%clk
0:00:36.2]} 39. Rb1 {[%clk 0:01:17.2]} 39... Qc3 {[%clk 0:00:37]} 40. b5 {[%clk
0:01:13.6]} 40... Qc5+ {[%clk 0:00:37.3]} 41. Kh2 {[%clk 0:01:14.6]} 41... Qb6
{[%clk 0:00:26]} 42. h4 {[%clk 0:01:12.5]} 42... Ra8 {[%clk 0:00:24.9]} 43. Qe7
{[%clk 0:01:09.7]} 43... Ra5 {[%clk 0:00:17.7]} 44. Qf8+ {[%clk 0:01:02.5]}
44... Kh7 {[%clk 0:00:18.4]} 45. Qf5+ {[%clk 0:01:04.4]} 45... Kh8 {[%clk
0:00:19.4]} 46. Re1 {[%clk 0:01:01.6]} 46... Ra8 {[%clk 0:00:20.1]} 47. Qd7
{[%clk 0:00:55]} 47... Qd4 {[%clk 0:00:18.5]} 48. Re8+ {[%clk 0:00:48.3]} 1-0